[Event "Late-Titled-Tuesday-Blitz-July-09-2024"]
[Site "Chess.com"]
[Date "2024.07.09"]
[Round "10"]
[White "Fjal"]
[Black "Matalon"]
[Result "0-1"]
[WhiteElo "2387"]
[BlackElo "2476"]
[TimeControl "180+1"]
[EndTime "15:54:40 PDT"]
[Termination "Matalon won by checkmate"]

1. Nf3 {[%clk 0:02:51.3]} 1... Nf6 {[%clk 0:02:59.2]} 2. g3 {[%clk 0:02:43.4]}
2... g6 {[%clk 0:02:59]} 3. Bg2 {[%clk 0:02:44.1]} 3... Bg7 {[%clk 0:02:59]} 4.
O-O {[%clk 0:02:45]} 4... O-O {[%clk 0:02:59.5]} 5. d3 {[%clk 0:02:45.9]} 5...
b6 {[%clk 0:02:57.9]} 6. e4 {[%clk 0:02:43.8]} 6... d6 {[%clk 0:02:56.5]} 7. a4
{[%clk 0:02:44.2]} 7... a5 {[%clk 0:02:55.2]} 8. Na3 {[%clk 0:02:42.7]} 8... Bb7
{[%clk 0:02:55.4]} 9. Re1 {[%clk 0:02:43]} 9... Nfd7 {[%clk 0:02:54.3]} 10. d4
{[%clk 0:02:42]} 10... c5 {[%clk 0:02:52.7]} 11. c3 {[%clk 0:02:41.3]} 11...
cxd4 {[%clk 0:02:50.1]} 12. cxd4 {[%clk 0:02:42.2]} 12... Nc6 {[%clk 0:02:50.4]}
13. Nb5 {[%clk 0:02:42.4]} 13... Ba6 {[%clk 0:02:48.3]} 14. e5 {[%clk
0:02:37.5]} 14... dxe5 {[%clk 0:02:44.5]} 15. Nxe5 {[%clk 0:02:35.3]} 15...
Ndxe5 {[%clk 0:02:44.2]} 16. dxe5 {[%clk 0:02:32.6]} 16... Qxd1 {[%clk
0:02:36.1]} 17. Rxd1 {[%clk 0:02:33.5]} 17... Rac8 {[%clk 0:02:35.8]} 18. f4
{[%clk 0:02:24.6]} 18... Bxb5 {[%clk 0:02:34.9]} 19. axb5 {[%clk 0:02:25.5]}
19... Nb4 {[%clk 0:02:35.3]} 20. Be3 {[%clk 0:02:25.3]} 20... Nc2 {[%clk
0:02:35.4]} 21. Bxb6 {[%clk 0:02:21.6]} 21... Nxa1 {[%clk 0:02:35.4]} 22. Rxa1
{[%clk 0:02:22.3]} 22... Rb8 {[%clk 0:02:35.8]} 23. Bxa5 {[%clk 0:02:20.6]}
23... Rxb5 {[%clk 0:02:36]} 24. b4 {[%clk 0:02:21.1]} 24... f6 {[%clk
0:02:28.7]} 25. Bc6 {[%clk 0:02:21.3]} 25... Rbb8 {[%clk 0:02:26.9]} 26. b5
{[%clk 0:02:21.5]} 26... fxe5 {[%clk 0:02:25.9]} 27. Re1 {[%clk 0:02:20.6]}
27... exf4 {[%clk 0:02:22.6]} 28. Rxe7 {[%clk 0:02:19.9]} 28... f3 {[%clk
0:02:21.5]} 29. b6 {[%clk 0:02:11.7]} 29... Rbd8 {[%clk 0:02:07]} 30. Bd7 {[%clk
0:01:42.4]} 30... Ra8 {[%clk 0:01:53.6]} 31. Be6+ {[%clk 0:01:26.1]} 31... Kh8
{[%clk 0:01:52.7]} 32. Rxg7 {[%clk 0:01:03.6]} 32... f2+ {[%clk 0:01:38.3]} 33.
Kf1 {[%clk 0:01:01.2]} 33... Rxa5 {[%clk 0:01:38.9]} 34. Rf7 {[%clk 0:00:55.8]}
34... Ra1+ {[%clk 0:01:37.9]} 35. Kxf2 {[%clk 0:00:55.4]} 35... Rxf7+ {[%clk
0:01:34.2]} 36. Bxf7 {[%clk 0:00:55.4]} 36... Rb1 {[%clk 0:01:35.1]} 37. Kg2
{[%clk 0:00:53.8]} 37... Rxb6 {[%clk 0:01:35.1]} 38. Bd5 {[%clk 0:00:53.3]}
38... Kg7 {[%clk 0:01:35.3]} 39. h4 {[%clk 0:00:53.8]} 39... h6 {[%clk
0:01:34.2]} 40. Kh3 {[%clk 0:00:54]} 40... Kf6 {[%clk 0:01:34.4]} 41. Bc4 {[%clk
0:00:53.5]} 41... g5 {[%clk 0:01:30.6]} 42. hxg5+ {[%clk 0:00:51.7]} 42... hxg5
{[%clk 0:01:31.5]} 43. Bd3 {[%clk 0:00:51.2]} 43... Rb4 {[%clk 0:01:31.5]} 44.
Be2 {[%clk 0:00:48.8]} 44... Kg6 {[%clk 0:01:30.5]} 45. Bg4 {[%clk 0:00:47.1]}
45... Rd4 {[%clk 0:01:27.8]} 46. Be6 {[%clk 0:00:34.9]} 46... Kf6 {[%clk
0:01:22]} 47. Bc8 {[%clk 0:00:32.5]} 47... Rb4 {[%clk 0:01:18.7]} 48. Bd7 {[%clk
0:00:32]} 48... Ke7 {[%clk 0:01:18.8]} 49. Bc8 {[%clk 0:00:31.3]} 49... Rb5
{[%clk 0:01:16.3]} 50. Ba6 {[%clk 0:00:30.3]} 50... Rb4 {[%clk 0:01:15.9]} 51.
Bd3 {[%clk 0:00:30.1]} 51... Kd6 {[%clk 0:01:15.9]} 52. Bf5 {[%clk 0:00:30]}
52... Ke5 {[%clk 0:01:15.9]} 53. Bc8 {[%clk 0:00:30.6]} 53... Kf6 {[%clk
0:01:11.3]} 54. Bd7 {[%clk 0:00:30.1]} 54... Rb1 {[%clk 0:01:11.7]} 55. Bc8
{[%clk 0:00:28.5]} 55... Re1 {[%clk 0:01:08.4]} 56. Ba6 {[%clk 0:00:26.9]} 56...
Kg6 {[%clk 0:01:06.6]} 57. Bc8 {[%clk 0:00:23.1]} 57... Re4 {[%clk 0:01:03.7]}
58. Bb7 {[%clk 0:00:16.9]} 58... Rd4 {[%clk 0:01:00.1]} 59. Bc8 {[%clk
0:00:16.5]} 59... Kh5 {[%clk 0:00:58.6]} 60. g4+ {[%clk 0:00:14]} 60... Kg6
{[%clk 0:00:58]} 61. Kg3 {[%clk 0:00:13.3]} 61... Kf6 {[%clk 0:00:58.6]} 62. Kf3
{[%clk 0:00:13.6]} 62... Ke5 {[%clk 0:00:58.8]} 63. Ke3 {[%clk 0:00:14]} 63...
Rc4 {[%clk 0:00:57.3]} 64. Bd7 {[%clk 0:00:13.1]} 64... Rc3+ {[%clk 0:00:57.4]}
65. Kf2 {[%clk 0:00:12.9]} 65... Kf4 {[%clk 0:00:41.8]} 66. Kg2 {[%clk
0:00:13.8]} 66... Rf3 {[%clk 0:00:38.5]} 67. Be6 {[%clk 0:00:13.4]} 67... Rc3
{[%clk 0:00:36.9]} 68. Kf2 {[%clk 0:00:13.6]} 68... Rc2+ {[%clk 0:00:35.5]} 69.
Kf1 {[%clk 0:00:12.9]} 69... Kg3 {[%clk 0:00:34.3]} 70. Kg1 {[%clk 0:00:12]}
70... Rc1# {[%clk 0:00:33.9]} 0-1

[Event "Late-Titled-Tuesday-Blitz-July-09-2024"]
[Site "Chess.com"]
[Date "2024.07.09"]
[Round "10"]
[White "Goryachkina"]
[Black "JunjiCol"]
[Result "0-1"]
[WhiteElo "2702"]
[BlackElo "2482"]
[TimeControl "180+1"]
[EndTime "15:54:52 PDT"]
[Termination "JunjiCol won on time"]

1. e4 {[%clk 0:02:59.9]} 1... e5 {[%clk 0:02:59]} 2. Nf3 {[%clk 0:03:00.2]} 2...
d5 {[%clk 0:02:59]} 3. d4 {[%clk 0:02:54.9]} 3... dxe4 {[%clk 0:02:57.7]} 4.
Nxe5 {[%clk 0:02:55]} 4... Bd6 {[%clk 0:02:58.3]} 5. Bf4 {[%clk 0:02:38.8]} 5...
Ne7 {[%clk 0:02:42]} 6. Bc4 {[%clk 0:02:37.1]} 6... Bxe5 {[%clk 0:02:33.2]} 7.
Bxe5 {[%clk 0:02:36.1]} 7... Nbc6 {[%clk 0:02:30.8]} 8. Bxg7 {[%clk 0:02:15.3]}
8... Rg8 {[%clk 0:02:30.3]} 9. Bf6 {[%clk 0:02:14.9]} 9... Rg6 {[%clk 0:02:00]}
10. Bxe7 {[%clk 0:01:52.5]} 10... Qxe7 {[%clk 0:02:00.9]} 11. Nc3 {[%clk
0:01:50.7]} 11... Rxg2 {[%clk 0:01:56.4]} 12. Qh5 {[%clk 0:01:44.2]} 12... Bg4
{[%clk 0:01:47.2]} 13. Qd5 {[%clk 0:01:07.6]} 13... Bf3 {[%clk 0:01:38.3]} 14.
Bb5 {[%clk 0:00:57]} 14... Rd8 {[%clk 0:01:21.5]} 15. Bxc6+ {[%clk 0:00:52.7]}
15... bxc6 {[%clk 0:01:22.4]} 16. Qxc6+ {[%clk 0:00:52.9]} 16... Kf8 {[%clk
0:01:21.7]} 17. Qh6+ {[%clk 0:00:51.7]} 17... Kg8 {[%clk 0:01:19]} 18. Qe3
{[%clk 0:00:41]} 18... Qh4 {[%clk 0:01:10.8]} 19. d5 {[%clk 0:00:28.3]} 19... c6
{[%clk 0:01:00.4]} 20. Qxa7 {[%clk 0:00:15.6]} 20... cxd5 {[%clk 0:00:52.3]} 21.
Qd4 {[%clk 0:00:15.5]} 21... Re8 {[%clk 0:00:45.1]} 22. Nxd5 {[%clk 0:00:13.5]}
22... Re6 {[%clk 0:00:31.8]} 23. Qe3 {[%clk 0:00:12.5]} 23... Rd6 {[%clk
0:00:28]} 24. c4 {[%clk 0:00:12.5]} 24... Rgg6 {[%clk 0:00:19.6]} 25. Rf1 {[%clk
0:00:11.8]} 25... Qxh2 {[%clk 0:00:20.1]} 26. Kd2 {[%clk 0:00:11.6]} 26... Qe5
{[%clk 0:00:19.2]} 27. Qc3 {[%clk 0:00:06.7]} 27... Rxd5+ {[%clk 0:00:17.3]} 28.
cxd5 {[%clk 0:00:06.9]} 28... Qxd5+ {[%clk 0:00:18.2]} 29. Ke1 {[%clk
0:00:06.8]} 29... Rc6 {[%clk 0:00:16.1]} 30. Rg1+ {[%clk 0:00:05.7]} 30... Kf8
{[%clk 0:00:15.3]} 31. Qg7+ {[%clk 0:00:05.7]} 31... Ke8 {[%clk 0:00:15.5]} 32.
Qg8+ {[%clk 0:00:04.8]} 32... Kd7 {[%clk 0:00:15.5]} 33. Qg5 {[%clk 0:00:03.5]}
33... f5 {[%clk 0:00:12.2]} 34. Qd2 {[%clk 0:00:03.3]} 34... Rd6 {[%clk
0:00:09.9]} 35. Qxd5 {[%clk 0:00:03.5]} 35... Rxd5 {[%clk 0:00:10.8]} 36. a4
{[%clk 0:00:04]} 36... h5 {[%clk 0:00:07.6]} 37. a5 {[%clk 0:00:04.4]} 37... Rb5
{[%clk 0:00:03.4]} 38. a6 {[%clk 0:00:04.5]} 38... Rb8 {[%clk 0:00:03.9]} 39. a7
{[%clk 0:00:04.7]} 39... Ra8 {[%clk 0:00:04.8]} 40. Rg7+ {[%clk 0:00:04.6]}
40... Ke6 {[%clk 0:00:05.2]} 41. Rh7 {[%clk 0:00:04.2]} 41... f4 {[%clk
0:00:02.2]} 42. Kd2 {[%clk 0:00:04]} 42... Rd8+ {[%clk 0:00:01.6]} 43. Kc3
{[%clk 0:00:04.2]} 43... Ra8 {[%clk 0:00:02.5]} 44. Kd4 {[%clk 0:00:04.5]} 44...
Rd8+ {[%clk 0:00:02.2]} 45. Kc5 {[%clk 0:00:04.4]} 45... Ra8 {[%clk 0:00:03.1]}
46. b4 {[%clk 0:00:04.4]} 46... e3 {[%clk 0:00:04]} 47. fxe3 {[%clk 0:00:04.5]}
47... fxe3 {[%clk 0:00:04.9]} 48. b5 {[%clk 0:00:05]} 48... e2 {[%clk
0:00:04.3]} 49. b6 {[%clk 0:00:05.4]} 49... Rc8+ {[%clk 0:00:04.7]} 50. Kd4
{[%clk 0:00:05.6]} 50... Rd8+ {[%clk 0:00:05.1]} 51. Ke3 {[%clk 0:00:05.2]}
51... Rd1 {[%clk 0:00:05.2]} 52. Kxf3 {[%clk 0:00:01.6]} 52... e1=Q {[%clk
0:00:03.5]} 53. a8=Q {[%clk 0:00:01.9]} 53... Rd3+ {[%clk 0:00:02.2]} 54. Kg2
{[%clk 0:00:01.1]} 54... Rg3+ {[%clk 0:00:01.6]} 55. Kh2 {[%clk 0:00:01.3]}
55... Qf2+ {[%clk 0:00:02]} 0-1

[Event "Late-Titled-Tuesday-Blitz-July-09-2024"]
[Site "Chess.com"]
[Date "2024.07.09"]
[Round "10"]
[White "JAN2404"]
[Black "petr577"]
[Result "0-1"]
[WhiteElo "2119"]
[BlackElo "2420"]
[TimeControl "180+1"]
[EndTime "15:54:55 PDT"]
[Termination "petr577 won on time"]

1. e4 {[%clk 0:03:00.9]} 1... e5 {[%clk 0:02:59.1]} 2. Nc3 {[%clk 0:02:58.9]}
2... Nc6 {[%clk 0:02:58.8]} 3. Bc4 {[%clk 0:02:58.3]} 3... Nf6 {[%clk
0:02:59.3]} 4. d3 {[%clk 0:02:58.2]} 4... Na5 {[%clk 0:03:00]} 5. Bb3 {[%clk
0:02:52.1]} 5... Nxb3 {[%clk 0:03:00.2]} 6. axb3 {[%clk 0:02:52.3]} 6... Be7
{[%clk 0:02:58.7]} 7. f4 {[%clk 0:02:47.7]} 7... exf4 {[%clk 0:02:42.6]} 8. Bxf4
{[%clk 0:02:46.4]} 8... d6 {[%clk 0:02:43.2]} 9. Nf3 {[%clk 0:02:44.7]} 9... O-O
{[%clk 0:02:43.1]} 10. O-O {[%clk 0:02:38.3]} 10... c6 {[%clk 0:02:33.3]} 11. d4
{[%clk 0:02:22.6]} 11... Re8 {[%clk 0:02:33]} 12. Qd3 {[%clk 0:02:14.4]} 12...
Bf8 {[%clk 0:02:18.6]} 13. Bg5 {[%clk 0:02:05.6]} 13... h6 {[%clk 0:02:17.7]}
14. Bxf6 {[%clk 0:01:58.6]} 14... Qxf6 {[%clk 0:02:18.6]} 15. Ne5 {[%clk
0:01:54.6]} 15... Qh4 {[%clk 0:02:02.2]} 16. Qf3 {[%clk 0:01:42.5]} 16... Be6
{[%clk 0:01:55.5]} 17. d5 {[%clk 0:01:24.5]} 17... dxe5 {[%clk 0:01:39.6]} 18.
dxe6 {[%clk 0:01:23.5]} 18... f6 {[%clk 0:01:40.1]} 19. g3 {[%clk 0:01:11]}
19... Qg5 {[%clk 0:01:34.8]} 20. Rad1 {[%clk 0:01:10.6]} 20... Rxe6 {[%clk
0:01:30.5]} 21. h4 {[%clk 0:01:09.9]} 21... Qg6 {[%clk 0:01:27.5]} 22. Rd7
{[%clk 0:01:09.8]} 22... b5 {[%clk 0:01:06.2]} 23. Rfd1 {[%clk 0:00:53.9]} 23...
Bc5+ {[%clk 0:01:05.2]} 24. Kh2 {[%clk 0:00:50]} 24... Rae8 {[%clk 0:00:50.2]}
25. Rc7 {[%clk 0:00:39]} 25... Bb6 {[%clk 0:00:37.7]} 26. Rb7 {[%clk 0:00:33.7]}
26... R8e7 {[%clk 0:00:33.9]} 27. Rdd7 {[%clk 0:00:19.2]} 27... Rxd7 {[%clk
0:00:30.3]} 28. Rxd7 {[%clk 0:00:19.7]} 28... Qe8 {[%clk 0:00:30.6]} 29. Qd1
{[%clk 0:00:20.2]} 29... Re7 {[%clk 0:00:30.5]} 30. Rd6 {[%clk 0:00:18.6]} 30...
Bc5 {[%clk 0:00:27.7]} 31. Rd8 {[%clk 0:00:18.4]} 31... Kh7 {[%clk 0:00:26.3]}
32. Rxe8 {[%clk 0:00:18.5]} 32... Rxe8 {[%clk 0:00:27.2]} 33. Qd7 {[%clk
0:00:17.5]} 33... Rg8 {[%clk 0:00:20.7]} 34. Qxc6 {[%clk 0:00:14.2]} 34... Bd4
{[%clk 0:00:21.2]} 35. Nxb5 {[%clk 0:00:12.9]} 35... Kg6 {[%clk 0:00:18.7]} 36.
Qd7 {[%clk 0:00:09.4]} 36... Kh7 {[%clk 0:00:17.2]} 37. Nd6 {[%clk 0:00:08.6]}
37... a5 {[%clk 0:00:12.5]} 38. Ne8 {[%clk 0:00:08.7]} 38... Kh8 {[%clk
0:00:12.1]} 39. h5 {[%clk 0:00:06.9]} 39... Be3 {[%clk 0:00:11.3]} 40. c4 {[%clk
0:00:06.2]} 40... Bd4 {[%clk 0:00:11.1]} 41. c5 {[%clk 0:00:06.3]} 41... Bxc5
{[%clk 0:00:04.9]} 42. Nc7 {[%clk 0:00:06]} 42... Bd4 {[%clk 0:00:04.8]} 43. Ne6
{[%clk 0:00:06]} 43... Bxb2 {[%clk 0:00:04.6]} 44. Kh3 {[%clk 0:00:04.8]} 44...
Bc3 {[%clk 0:00:04.1]} 45. Qf7 {[%clk 0:00:04.7]} 45... Bb4 {[%clk 0:00:03.4]}
46. Kg4 {[%clk 0:00:04.3]} 46... Bc3 {[%clk 0:00:01.9]} 47. Kf5 {[%clk
0:00:04.5]} 47... Bd2 {[%clk 0:00:02.1]} 48. Kg6 {[%clk 0:00:04.5]} 48... Bg5
{[%clk 0:00:01]} 49. Nxg7 {[%clk 0:00:05]} 49... Bd2 {[%clk 0:00:01]} 50. g4
{[%clk 0:00:04.9]} 50... Bg5 {[%clk 0:00:01]} 51. Qe7 {[%clk 0:00:04.3]} 51...
f5 {[%clk 0:00:01]} 52. Qf7 {[%clk 0:00:03.7]} 52... fxe4 {[%clk 0:00:01.3]} 53.
Kf5 {[%clk 0:00:02.4]} 53... Rxg7 {[%clk 0:00:01.7]} 54. Qf8+ {[%clk 0:00:02.7]}
54... Kh7 {[%clk 0:00:02.2]} 55. Qd8 {[%clk 0:00:02.2]} 55... e3 {[%clk
0:00:02]} 56. Qg8+ {[%clk 0:00:02.4]} 56... Kxg8 {[%clk 0:00:01.7]} 0-1

[Event "Late-Titled-Tuesday-Blitz-July-09-2024"]
[Site "Chess.com"]
[Date "2024.07.09"]
[Round "10"]
[White "Keaton87"]
[Black "Byniolus"]
[Result "1-0"]
[WhiteElo "2677"]
[BlackElo "2793"]
[TimeControl "180+1"]
[EndTime "15:54:57 PDT"]
[Termination "Keaton87 won on time"]

1. d4 {[%clk 0:03:00.9]} 1... d6 {[%clk 0:02:55.8]} 2. Nf3 {[%clk 0:03:00.1]}
2... Bg4 {[%clk 0:02:55.1]} 3. g3 {[%clk 0:02:51.7]} 3... Bxf3 {[%clk
0:02:54.3]} 4. exf3 {[%clk 0:02:51.8]} 4... c6 {[%clk 0:02:55.2]} 5. Bg2 {[%clk
0:02:51.8]} 5... e6 {[%clk 0:02:55.2]} 6. O-O {[%clk 0:02:51.9]} 6... g6 {[%clk
0:02:55.4]} 7. b3 {[%clk 0:02:47.9]} 7... Bg7 {[%clk 0:02:54.3]} 8. Bb2 {[%clk
0:02:48.2]} 8... Ne7 {[%clk 0:02:54.7]} 9. Nd2 {[%clk 0:02:47.2]} 9... O-O
{[%clk 0:02:54.3]} 10. f4 {[%clk 0:02:47.3]} 10... Nd7 {[%clk 0:02:53.5]} 11. c4
{[%clk 0:02:47.4]} 11... d5 {[%clk 0:02:52.6]} 12. Qe2 {[%clk 0:02:41.3]} 12...
Nf5 {[%clk 0:02:45.4]} 13. Nf3 {[%clk 0:02:35]} 13... Qb6 {[%clk 0:02:38.3]} 14.
Rfd1 {[%clk 0:02:26.8]} 14... Rfd8 {[%clk 0:02:35]} 15. Rd2 {[%clk 0:02:12.7]}
15... Qa6 {[%clk 0:02:24.3]} 16. a3 {[%clk 0:02:04.7]} 16... Nb6 {[%clk
0:02:17.1]} 17. c5 {[%clk 0:02:02.2]} 17... Qxe2 {[%clk 0:02:16.7]} 18. Rxe2
{[%clk 0:02:03.1]} 18... Nd7 {[%clk 0:02:16.1]} 19. g4 {[%clk 0:01:52.7]} 19...
Ne7 {[%clk 0:02:15.5]} 20. b4 {[%clk 0:01:42.3]} 20... a5 {[%clk 0:02:11.5]} 21.
Ree1 {[%clk 0:01:34.3]} 21... Bh6 {[%clk 0:01:59.6]} 22. g5 {[%clk 0:01:33.5]}
22... Bg7 {[%clk 0:01:57.3]} 23. Bh3 {[%clk 0:01:31.8]} 23... Nf5 {[%clk
0:01:49.9]} 24. Bxf5 {[%clk 0:01:31.1]} 24... exf5 {[%clk 0:01:50.8]} 25. Bc3
{[%clk 0:01:28.1]} 25... axb4 {[%clk 0:01:48.2]} 26. axb4 {[%clk 0:01:27.5]}
26... Nf8 {[%clk 0:01:48.4]} 27. Rxa8 {[%clk 0:01:21.5]} 27... Rxa8 {[%clk
0:01:47.8]} 28. Bd2 {[%clk 0:01:06.6]} 28... Ne6 {[%clk 0:01:41.3]} 29. Be3
{[%clk 0:01:06.9]} 29... Ra3 {[%clk 0:01:28.6]} 30. Kg2 {[%clk 0:01:03.5]} 30...
Rb3 {[%clk 0:01:26.2]} 31. Bd2 {[%clk 0:00:51.2]} 31... h6 {[%clk 0:01:14.7]}
32. h4 {[%clk 0:00:48.9]} 32... hxg5 {[%clk 0:00:59.5]} 33. hxg5 {[%clk
0:00:48.8]} 33... Kf8 {[%clk 0:00:28.8]} 34. Ra1 {[%clk 0:00:48]} 34... Bxd4
{[%clk 0:00:25.8]} 35. Ra7 {[%clk 0:00:32.2]} 35... Kg7 {[%clk 0:00:18.8]} 36.
Nxd4 {[%clk 0:00:30.9]} 36... Nxd4 {[%clk 0:00:18.6]} 37. Rxb7 {[%clk 0:00:31]}
37... Ne6 {[%clk 0:00:06.1]} 38. Rb6 {[%clk 0:00:29.5]} 38... Rd3 {[%clk
0:00:02.8]} 39. Bc1 {[%clk 0:00:25]} 39... Rd1 {[%clk 0:00:02.9]} 40. Bb2+
{[%clk 0:00:25]} 40... d4 {[%clk 0:00:03.5]} 41. Rxc6 {[%clk 0:00:24]} 41...
Nxf4+ {[%clk 0:00:04]} 42. Kf3 {[%clk 0:00:24.3]} 42... Ne6 {[%clk 0:00:04]} 43.
Rd6 {[%clk 0:00:15]} 43... Nxg5+ {[%clk 0:00:04.4]} 44. Ke2 {[%clk 0:00:14.8]}
44... Rb1 {[%clk 0:00:04.8]} 45. Bxd4+ {[%clk 0:00:14.6]} 45... Kh7 {[%clk
0:00:03]} 46. Rd8 {[%clk 0:00:12.5]} 46... f6 {[%clk 0:00:03.5]} 47. Bxf6 {[%clk
0:00:11.7]} 47... Nf7 {[%clk 0:00:04.4]} 48. Rd7 {[%clk 0:00:11.5]} 48... Kg8
{[%clk 0:00:04.5]} 49. Rb7 {[%clk 0:00:11.3]} 49... g5 {[%clk 0:00:02.2]} 50. c6
{[%clk 0:00:10.1]} 50... Rc1 {[%clk 0:00:02.3]} 51. b5 {[%clk 0:00:09.9]} 51...
Nd6 {[%clk 0:00:02.2]} 52. Rb8+ {[%clk 0:00:09]} 52... Kf7 {[%clk 0:00:02.3]}
53. Be5 {[%clk 0:00:09.1]} 53... Nxb5 {[%clk 0:00:01.6]} 54. Rxb5 {[%clk
0:00:08.1]} 54... Rxc6 {[%clk 0:00:02.5]} 55. Bd4 {[%clk 0:00:08.3]} 55... Kg6
{[%clk 0:00:02.2]} 56. Rb6 {[%clk 0:00:08.2]} 56... Rxb6 {[%clk 0:00:02]} 57.
Bxb6 {[%clk 0:00:09.1]} 57... f4 {[%clk 0:00:02.3]} 58. Kd3 {[%clk 0:00:04.8]}
58... Kf5 {[%clk 0:00:03.2]} 59. Bc7 {[%clk 0:00:04.9]} 59... Kg4 {[%clk
0:00:02]} 60. Ke4 {[%clk 0:00:04.5]} 60... Kh3 {[%clk 0:00:02.5]} 61. Bxf4
{[%clk 0:00:03.7]} 1-0

[Event "Late-Titled-Tuesday-Blitz-July-09-2024"]
[Site "Chess.com"]
[Date "2024.07.09"]
[Round "10"]
[White "GlavkonVVS"]
[Black "Hirna2005"]
[Result "0-1"]
[WhiteElo "2566"]
[BlackElo "2447"]
[TimeControl "180+1"]
[EndTime "15:55:00 PDT"]
[Termination "Hirna2005 won by resignation"]

1. c4 {[%clk 0:01:49.1]} 1... g6 {[%clk 0:03:00.9]} 2. Nc3 {[%clk 0:01:48.6]}
2... Bg7 {[%clk 0:03:01.2]} 3. Nf3 {[%clk 0:01:49.2]} 3... d6 {[%clk 0:03:00.9]}
4. d4 {[%clk 0:01:49.6]} 4... Nf6 {[%clk 0:03:00.3]} 5. Bg5 {[%clk 0:01:50.1]}
5... O-O {[%clk 0:02:59.8]} 6. e3 {[%clk 0:01:50.3]} 6... Bf5 {[%clk 0:02:59.6]}
7. Bd3 {[%clk 0:01:49.3]} 7... Bxd3 {[%clk 0:02:53.5]} 8. Qxd3 {[%clk
0:01:48.9]} 8... Qd7 {[%clk 0:02:51.5]} 9. O-O {[%clk 0:01:48.1]} 9... Nc6
{[%clk 0:02:47.9]} 10. d5 {[%clk 0:01:43.7]} 10... Nb4 {[%clk 0:02:45.5]} 11.
Qe2 {[%clk 0:01:39.6]} 11... a5 {[%clk 0:02:44.9]} 12. a3 {[%clk 0:01:39.3]}
12... Na6 {[%clk 0:02:45]} 13. e4 {[%clk 0:01:38.6]} 13... Nc5 {[%clk
0:02:40.1]} 14. e5 {[%clk 0:01:37]} 14... Ne8 {[%clk 0:02:32.6]} 15. exd6 {[%clk
0:01:15.5]} 15... Nxd6 {[%clk 0:02:25]} 16. Qxe7 {[%clk 0:01:14.9]} 16... Qc8
{[%clk 0:01:58.3]} 17. Nb5 {[%clk 0:01:02.7]} 17... Nxb5 {[%clk 0:01:27.6]} 18.
Qxc5 {[%clk 0:00:48.7]} 18... Nd6 {[%clk 0:01:23.7]} 19. Rab1 {[%clk 0:00:36]}
19... Ne4 {[%clk 0:01:22.9]} 20. Qe3 {[%clk 0:00:33.3]} 20... Qf5 {[%clk
0:01:16.6]} 21. Bf4 {[%clk 0:00:32.1]} 21... Rfe8 {[%clk 0:01:06.7]} 22. Bxc7
{[%clk 0:00:21.2]} 22... Nc3 {[%clk 0:01:00.4]} 23. Qxe8+ {[%clk 0:00:20.1]}
23... Rxe8 {[%clk 0:00:59.5]} 24. bxc3 {[%clk 0:00:20.7]} 24... Qd3 {[%clk
0:00:48.1]} 25. d6 {[%clk 0:00:19.9]} 25... Rc8 {[%clk 0:00:39.3]} 26. Rfd1
{[%clk 0:00:19.7]} 26... Qxc4 {[%clk 0:00:39.5]} 27. Bxa5 {[%clk 0:00:17.4]}
27... Bf6 {[%clk 0:00:34.6]} 28. d7 {[%clk 0:00:17.5]} 28... Ra8 {[%clk
0:00:26.8]} 29. d8=Q+ {[%clk 0:00:17.7]} 29... Bxd8 {[%clk 0:00:26.4]} 30. Rxd8+
{[%clk 0:00:17.3]} 30... Rxd8 {[%clk 0:00:26.4]} 31. Bxd8 {[%clk 0:00:17.8]}
31... Qd3 {[%clk 0:00:22.8]} 32. Re1 {[%clk 0:00:12.8]} 32... Qxd8 {[%clk
0:00:22.3]} 33. h4 {[%clk 0:00:13.3]} 33... Qc7 {[%clk 0:00:20.4]} 34. Re3
{[%clk 0:00:13.1]} 34... Qc5 {[%clk 0:00:19.7]} 35. a4 {[%clk 0:00:13]} 35...
Qc4 {[%clk 0:00:17.6]} 36. Re8+ {[%clk 0:00:11.6]} 36... Kg7 {[%clk 0:00:17.3]}
37. Re7 {[%clk 0:00:12.1]} 37... Kf6 {[%clk 0:00:12.6]} 38. Rxb7 {[%clk
0:00:12]} 38... Qxc3 {[%clk 0:00:11.3]} 39. Rb6+ {[%clk 0:00:10.3]} 39... Kg7
{[%clk 0:00:10.9]} 40. Rb7 {[%clk 0:00:08.3]} 40... Qc6 {[%clk 0:00:08.1]} 41.
Rxf7+ {[%clk 0:00:07.2]} 41... Kg8 {[%clk 0:00:08]} 42. Rf4 {[%clk 0:00:07.3]}
42... Qc1+ {[%clk 0:00:06.8]} 43. Kh2 {[%clk 0:00:05.8]} 43... Qxf4+ {[%clk
0:00:07.4]} 44. Kh3 {[%clk 0:00:06.4]} 44... Qxa4 {[%clk 0:00:08]} 45. g3 {[%clk
0:00:06.5]} 45... Qb3 {[%clk 0:00:08.7]} 46. Kg2 {[%clk 0:00:06.9]} 46... Kf7
{[%clk 0:00:09.2]} 47. Ne5+ {[%clk 0:00:06.5]} 47... Ke6 {[%clk 0:00:09]} 48.
Nf3 {[%clk 0:00:05.8]} 48... Qd5 {[%clk 0:00:09.7]} 49. g4 {[%clk 0:00:05.7]}
49... Qe4 {[%clk 0:00:09.2]} 50. Kg3 {[%clk 0:00:06.3]} 50... h6 {[%clk
0:00:09.3]} 51. h5 {[%clk 0:00:05.1]} 51... g5 {[%clk 0:00:07.3]} 52. Nh2 {[%clk
0:00:04.8]} 52... Qf4+ {[%clk 0:00:07.1]} 53. Kg2 {[%clk 0:00:05.2]} 53... Ke5
{[%clk 0:00:06.5]} 54. f3 {[%clk 0:00:05.8]} 54... Qd2+ {[%clk 0:00:05.9]} 55.
Kg3 {[%clk 0:00:05.5]} 55... Qe1+ {[%clk 0:00:05.9]} 56. Kg2 {[%clk 0:00:05.5]}
56... Kf4 {[%clk 0:00:05.9]} 57. Nf1 {[%clk 0:00:05.7]} 57... Qe2+ {[%clk
0:00:06]} 58. Kg1 {[%clk 0:00:05.2]} 58... Kxf3 {[%clk 0:00:05.9]} 59. Nh2+
{[%clk 0:00:05.5]} 59... Kg3 {[%clk 0:00:05.6]} 60. Nf1+ {[%clk 0:00:05.7]}
60... Kxg4 {[%clk 0:00:05.8]} 61. Nh2+ {[%clk 0:00:05.9]} 61... Kh3 {[%clk
0:00:05.9]} 0-1